[Event "Klatov Bazar Besiny Cup 2018"]
[Site "Klatovy"]
[Date "2018.07.06"]
[Round "7"]
[White "Tscharotschkin, Michael"]
[Black "Vedral, Oldrich"]
[Result "1-0"]
[ECO "E99"]
[WhiteElo "2124"]
[BlackElo "2203"]
[Annotator "NA"]
[PlyCount "65"]
[EventDate "2018.07.01"]
[EventType "swiss"]
[EventCountry "CZE"]
[SourceTitle "playchess.com"]
[Source "ChessBase"]
[SourceQuality "1"]
[TimeControl "40/7200:0"]

{[%evp 11,65,25,24,32767,32767,32767,32767,32767,32767,32767,32767,32767,32767,32767,32767,32767,32767,32767,32767,32767,32767,32767,16,-1,32767,32767,-80,-76,32767,32767,32767,32767,32767,32767,32767,32767,-148,-153,-157,-160,-97,-94,-100,-286,-259,-317,-213,-400,0,-156,0,0,1835,2731,29989,500]} 1. d4 {[%emt 0:00:00]} Nf6 {[%emt 0:00:00]} 2. c4 {[%emt 0:00:00]} g6 {[%emt 0:00:00]} 3. Nc3 {[%emt 0:00:00]} Bg7 {[%emt 0:00:00]} 4. e4 {[%emt 0:00:00]} d6 {[%emt 0:00:00]} 5. Nf3 {[%emt 0:00:00]} O-O {[%emt 0:00:00]} 6. Be2 {[%emt 0:00:00]} e5 {[%emt 0:00:00] LiveBook: 29978 Games} 7. O-O {[%emt 0:00:00]} Nc6 {[%emt 0:00:00]} 8. d5 {[%emt 0:00:00]} Ne7 {[%emt 0:00:00]} 9. Ne1 {[%emt 0:00:00]} Nd7 {[%emt 0:00:00]} 10. f3 {[%emt 0:00:00]} f5 {[%emt 0:00:00]} 11. Be3 {[%emt 0:00:00]} f4 {[%emt 0:00:00]} 12. Bf2 {[%emt 0:00:00]} g5 {[%emt 0:00:00]} 13. Nd3 {[%emt 0:00:00]} Nf6 {[%emt 0:00:00]} 14. c5 {[%emt 0:00:00]} Ng6 {[%emt 0:00:00]} 15. Rc1 {[%emt 0:00:00]} Rf7 {[%emt 0:00:00]} 16. Qb3 {[%emt 0:00:00]} g4 {[%emt 0:00:00]} 17. cxd6 {[%emt 0:00:00]} cxd6 {[%emt 0:00:00]} 18. Nb5 {[%emt 0:00:00] [#]} g3 $1 {[%emt 0:02:26]} 19. hxg3 {[%emt 0:00:00]} fxg3 {[%emt 0:00:00]} 20. Bxg3 {[%emt 0:00:00]} Nh5 {[%emt 0:00:00]} 21. Bh2 {[%emt 0:00:00]} Bh6 {[%emt 0:00:00]} 22. f4 {[%emt 0:00:00]} Nhxf4 {[%emt 0:00:57]} 23. Nxf4 {[%emt 0:00:00]} Nxf4 {[%emt 0:00:02]} 24. Bxf4 {[%emt 0:04:55]} Bxf4 {[%emt 0:00:29]} 25. Rxf4 {[%emt 0:11:28]} Qb6+ {[%emt 0:17:30]} ({Black should try} 25... exf4 26. Nd4 Rg7) 26. Kh2 {[%emt 0:00:00]} exf4 {[%emt 0:00:25]} 27. e5 $2 {[%emt 0:06:17]} (27. Nc7 $17 {only move.} Qxb3 28. axb3) 27... dxe5 {[%emt 0:03:31]} 28. d6 {[%emt 0:00:27]} Kf8 {[%emt 0:04:19]} 29. Bh5 $2 {[%emt 0:11:28]} (29. Qd5 {was worth a try.} Qe3 30. Rc7) 29... Rf6 $2 {[%emt 0:10:46]} ({Better is} 29... Rg7 $19 30. Qd5 Qf2) 30. Qd5 $2 {[%emt 0:01:38] [#]} (30. Rc7 $11 Be6 31. Qd3) 30... Qe3 {[%emt 0:09:18]} (30... Be6 $1 $17 {[%cal Re6d5]} 31. Qxe5 Rf5 32. Qh8+ Bg8) 31. Rc3 {[%emt 0:01:32]} Be6 $18 {[%emt 0:01:39]} (31... Qe1 $11 32. d7 Bxd7 33. Qxd7 f3 34. Rxf3 Rxf3 35. Bxf3 Qh4+ 36. Kg1 Qe1+ 37. Kh2 Qh4+ 38. Qh3 Qf4+ 39. Qg3 Qh6+ 40. Kg1 Qc1+ 41. Kh2 Qh6+ 42. Kg1 Qc1+ 43. Kh2 Qh6+) 32. Qxb7 {[%emt 0:00:04]} Qe1 {[%emt 0:00:00]} 33. Qe7+ {[%emt 0:01:21]} 1-0

[Event "Klatov Bazar Besiny Cup 2018"]
[Site "Klatovy"]
[Date "2018.07.07"]
[Round "8"]
[White "Neuman, Petr"]
[Black "Xu, XianLiang"]
[Result "1/2-1/2"]
[ECO "A20"]
[WhiteElo "2432"]
[BlackElo "2430"]
[Annotator "NA"]
[PlyCount "21"]
[EventDate "2018.07.01"]
[EventType "swiss"]
[EventCountry "CZE"]
[SourceTitle "playchess.com"]
[Source "ChessBase"]
[SourceQuality "1"]
[TimeControl "40/7200:0"]

1. c4 {[%emt 0:00:00]} e5 {[%emt 0:00:00]} 2. g3 {[%emt 0:00:00]} Nf6 {[%emt 0:00:00]} 3. Bg2 {[%emt 0:00:00]} c6 {[%emt 0:00:00]} 4. d4 {[%emt 0:00:00]} exd4 {[%emt 0:00:00]} 5. Qxd4 {[%emt 0:00:00]} d5 $11 {[%emt 0:00:00] LiveBook: 473 Games} 6. Nf3 {[%emt 0:03:02]} Be7 {[%emt 0:03:45]} 7. cxd5 {[%emt 0:01:26]} cxd5 {[%emt 0:03:58]} 8. O-O {[%emt 0:02:38]} Nc6 {[%emt 0:00:23]} 9. Qd1 {[%emt 0:00:00]} O-O {[%emt 0:04:28]} 10. Nbd2 {[%emt 0:02:16]} Bc5 {[%emt 0:05:55]} 11. Nb3 {[%emt 0:00:46]} 1/2-1/2

[Event "Klatov Bazar Besiny Cup 2018"]
[Site "Klatovy"]
[Date "2018.07.07"]
[Round "8"]
[White "Straka, Vojtech"]
[Black "Parizek, Vojtech"]
[Result "1-0"]
[ECO "A16"]
[WhiteElo "2379"]
[BlackElo "2242"]
[Annotator "NA"]
[PlyCount "51"]
[EventDate "2018.07.01"]
[EventType "swiss"]
[EventCountry "CZE"]
[SourceTitle "playchess.com"]
[Source "ChessBase"]
[SourceQuality "1"]
[TimeControl "40/7200:0"]

1. c4 {[%emt 0:04:26]} Nf6 {[%emt 0:00:00]} 2. Nc3 {[%emt 0:00:00]} g6 {[%emt 0:00:00]} 3. g3 {[%emt 0:00:00]} Bg7 {[%emt 0:00:00]} 4. Bg2 {[%emt 0:00:00]} O-O {[%emt 0:00:00]} 5. Nf3 {[%emt 0:00:00]} d6 {[%emt 0:00:00]} 6. Rb1 {[%emt 0:01:29]} c6 {[%emt 0:00:39]} 7. d3 {[%emt 0:15:28]} e5 {[%emt 0:12:04]} 8. O-O {[%emt 0:03:57]} Nbd7 {[%emt 0:03:34]} 9. Nd2 {[%emt 0:02:41]} Nc5 {[%emt 0:05:24]} 10. b4 {[%emt 0:02:29]} Ne6 {[%emt 0:00:43]} 11. b5 {[%emt 0:00:00]} Qc7 {[%emt 0:05:45]} 12. bxc6 {[%emt 0:09:05]} bxc6 {[%emt 0:00:00]} 13. Nb5 {[%emt 0:00:00]} Qd7 {[%emt 0:03:42]} 14. Ba3 {[%emt 0:05:22]} Ne8 {[%emt 0:01:58]} 15. Nc3 {[%emt 0:00:29]} f5 {[%emt 0:02:20]} 16. Qa4 {[%emt 0:13:35]} Bb7 {[%emt 0:12:13]} 17. Rxb7 {[%emt 0:01:10]} Qxb7 {[%emt 0:00:00]} 18. Bxc6 {[%emt 0:00:00]} Qb8 {[%emt 0:02:02]} 19. Rb1 {[%emt 0:00:30]} Qd8 {[%emt 0:00:10]} 20. Bxa8 {[%emt 0:03:07]} Qxa8 {[%emt 0:00:00]} 21. Qd7 {[%emt 0:00:50]} Ng5 {[%emt 0:06:27]} 22. Qb7 {[%emt 0:18:16]} Qd8 {[%emt 0:07:20]} 23. Qxa7 {[%emt 0:03:47]} f4 {[%emt 0:09:47]} 24. Nce4 {[%emt 0:02:32]} Nxe4 {[%emt 0:13:28]} 25. Nxe4 {[%emt 0:00:16]} fxg3 {[%emt 0:01:18]} 26. hxg3 {[%emt 0:00:00]} 1-0

[Event "Klatov Bazar Besiny Cup 2018"]
[Site "Klatovy"]
[Date "2018.07.07"]
[Round "8"]
[White "Hollan, Martin"]
[Black "Tscharotschkin, Michael"]
[Result "1/2-1/2"]
[ECO "D31"]
[WhiteElo "2341"]
[BlackElo "2124"]
[Annotator "NA"]
[PlyCount "58"]
[EventDate "2018.07.01"]
[EventType "swiss"]
[EventCountry "CZE"]
[SourceTitle "playchess.com"]
[Source "ChessBase"]
[SourceQuality "1"]
[TimeControl "40/7200:0"]

1. c4 {[%emt 0:05:16]} e6 {[%emt 0:00:00]} 2. Nc3 {[%emt 0:00:00]} d5 {[%emt 0:00:00]} 3. d4 {[%emt 0:00:00]} c6 {[%emt 0:00:00]} 4. Nf3 {[%emt 0:00:00]} f5 {[%emt 0:00:00]} 5. Bf4 {[%emt 0:00:00]} Nf6 {[%emt 0:00:00]} 6. e3 {[%emt 0:00:00]} Bd6 {[%emt 0:00:17]} 7. Bxd6 {[%emt 0:02:03]} Qxd6 {[%emt 0:02:53]} 8. Ne5 {[%emt 0:00:00]} O-O {[%emt 0:00:10]} 9. c5 {[%emt 0:00:09]} Qc7 {[%emt 0:00:29]} 10. Bd3 {[%emt 0:02:18]} Nbd7 {[%emt 0:00:46]} 11. f4 {[%emt 0:01:55]} b6 {[%emt 0:02:30]} 12. cxb6 {[%emt 0:05:54]} axb6 {[%emt 0:07:40]} 13. O-O {[%emt 0:00:39]} Ba6 {[%emt 0:02:11]} 14. Rc1 {[%emt 0:01:09]} Nxe5 {[%emt 0:04:05]} 15. fxe5 {[%emt 0:00:55]} Bxd3 {[%emt 0:00:28]} 16. Qxd3 {[%emt 0:00:00]} Ne4 {[%emt 0:00:33]} 17. Nxe4 {[%emt 0:02:11]} fxe4 {[%emt 0:00:00]} 18. Rxf8+ {[%emt 0:01:29]} Rxf8 {[%emt 0:00:00]} 19. Qe2 {[%emt 0:07:22]} c5 {[%emt 0:00:17]} 20. b3 {[%emt 0:02:07]} Qe7 {[%emt 0:01:13]} 21. Qg4 {[%emt 0:16:29]} Qf7 {[%emt 0:03:16]} 22. Qe2 {[%emt 0:14:01]} cxd4 {[%emt 0:00:56]} 23. exd4 {[%emt 0:00:00]} Qf4 {[%emt 0:01:05]} 24. Rf1 {[%emt 0:02:23]} Qxf1+ {[%emt 0:00:05]} 25. Qxf1 {[%emt 0:00:00]} Rxf1+ {[%emt 0:00:00]} 26. Kxf1 {[%emt 0:00:00]} Kf7 {[%emt 0:00:00]} 27. Ke2 {[%emt 0:01:12]} b5 {[%emt 0:00:16]} 28. a3 {[%emt 0:00:00]} Ke7 {[%emt 0:00:17]} 29. Ke3 {[%emt 0:00:00]} Kd7 {[%emt 0:00:23] Kxe4} 1/2-1/2

[Event "Klatov Bazar Besiny Cup 2018"]
[Site "Klatovy"]
[Date "2018.07.07"]
[Round "8"]
[White "Slovak, Kilian"]
[Black "Hurdzan, Tomas"]
[Result "1-0"]
[ECO "B67"]
[WhiteElo "2285"]
[BlackElo "2164"]
[Annotator "NA"]
[PlyCount "85"]
[EventDate "2018.07.01"]
[EventType "swiss"]
[EventCountry "CZE"]
[SourceTitle "playchess.com"]
[Source "ChessBase"]
[SourceQuality "1"]
[TimeControl "40/7200:0"]

1. e4 {[%emt 0:00:00]} c5 {[%emt 0:00:00]} 2. Nf3 {[%emt 0:00:00]} Nc6 {[%emt 0:00:00]} 3. d4 {[%emt 0:00:00]} cxd4 {[%emt 0:00:00]} 4. Nxd4 {[%emt 0:00:00]} Nf6 {[%emt 0:00:00]} 5. Nc3 {[%emt 0:00:00]} d6 {[%emt 0:00:00]} 6. Bg5 {[%emt 0:00:00]} e6 {[%emt 0:00:00]} 7. Qd2 {[%emt 0:00:00]} a6 {[%emt 0:00:00]} 8. O-O-O {[%emt 0:00:00]} Bd7 {[%emt 0:00:00]} 9. f4 {[%emt 0:00:00]} b5 {[%emt 0:00:00]} 10. Bxf6 {[%emt 0:01:35]} gxf6 {[%emt 0:00:00]} 11. Kb1 {[%emt 0:01:44]} Qb6 {[%emt 0:00:00]} 12. Nf3 {[%emt 0:12:48]} O-O-O {[%emt 0:05:54]} 13. f5 {[%emt 0:01:55]} Kb8 {[%emt 0:13:06]} 14. fxe6 {[%emt 0:04:32]} fxe6 {[%emt 0:00:00]} 15. g3 {[%emt 0:03:59]} Bc8 {[%emt 0:13:13]} 16. Bh3 {[%emt 0:05:05]} Bg7 {[%emt 0:11:59]} 17. Qe1 {[%emt 0:17:06]} Qc5 {[%emt 0:03:06]} 18. Ne2 {[%emt 0:04:31]} Rhe8 {[%emt 0:05:37]} 19. Nf4 {[%emt 0:07:18]} b4 {[%emt 0:12:44]} 20. Rf1 {[%emt 0:21:36]} Re7 {[%emt 0:02:29]} 21. Qf2 {[%emt 0:04:53]} Qb5 {[%emt 0:02:40]} 22. Rfe1 {[%emt 0:02:28]} a5 {[%emt 0:02:42]} 23. Bf1 {[%emt 0:00:38]} Qb7 {[%emt 0:01:41]} 24. Nd2 {[%emt 0:03:51]} Ne5 {[%emt 0:03:31]} 25. Nc4 {[%emt 0:02:18]} Nxc4 {[%emt 0:00:00]} 26. Bxc4 {[%emt 0:00:00]} Qc6 {[%emt 0:10:44]} 27. Bb3 {[%emt 0:04:33]} Ree8 {[%emt 0:04:40]} 28. Qf1 {[%emt 0:04:23]} Bh6 {[%emt 0:05:15]} 29. Ne2 {[%emt 0:02:47]} Bg7 {[%emt 0:03:04]} 30. Nd4 {[%emt 0:00:45]} Qb7 {[%emt 0:02:28]} 31. Qh3 {[%emt 0:03:41]} d5 {[%emt 0:03:05]} 32. exd5 {[%emt 0:01:47]} exd5 {[%emt 0:00:00]} 33. Qh5 {[%emt 0:00:49]} Re5 {[%emt 0:00:19]} 34. Qf3 {[%emt 0:01:28]} Rde8 {[%emt 0:00:50]} 35. Rxe5 {[%emt 0:00:00]} Rxe5 {[%emt 0:00:00]} 36. Qd3 {[%emt 0:01:11]} f5 {[%emt 0:01:24]} 37. Ba4 {[%emt 0:01:30]} Bd7 {[%emt 0:04:55]} 38. Bxd7 {[%emt 0:00:00]} Qxd7 {[%emt 0:00:00]} 39. Qa6 {[%emt 0:00:00]} Re4 {[%emt 0:00:00]} 40. Qb6+ {[%emt 0:00:00]} Kc8 {[%emt 0:00:00]} 41. Nb5 {[%emt 1:59:29]} Qe7 {[%emt 2:00:09]} 42. Na7+ {[%emt 0:00:00]} Kd7 {[%emt 0:00:00]} 43. Qc6+ {[%emt 0:00:00]} 1-0

[Event "Klatov Bazar Besiny Cup 2018"]
[Site "Klatovy"]
[Date "2018.07.07"]
[Round "8"]
[White "Kopta, Pavel"]
[Black "Pulpan, Jakub"]
[Result "0-1"]
[ECO "A53"]
[WhiteElo "2210"]
[BlackElo "2386"]
[Annotator "NA"]
[PlyCount "106"]
[EventDate "2018.07.01"]
[EventType "swiss"]
[EventCountry "CZE"]
[SourceTitle "playchess.com"]
[Source "ChessBase"]
[SourceQuality "1"]
[TimeControl "40/7200:0"]

1. d4 {[%emt 0:00:00]} Nf6 {[%emt 0:00:00]} 2. c4 {[%emt 0:00:00]} d6 {[%emt 0:00:00]} 3. Nc3 {[%emt 0:00:00]} Bf5 {[%emt 0:00:00]} 4. f3 {[%emt 0:01:23]} e5 {[%emt 0:00:00]} 5. dxe5 {[%emt 0:00:43]} dxe5 {[%emt 0:00:00]} 6. Qxd8+ {[%emt 0:00:00]} Kxd8 {[%emt 0:00:00]} 7. e4 {[%emt 0:02:37]} Be6 {[%emt 0:00:30]} 8. Be3 {[%emt 0:02:02]} c6 {[%emt 0:00:10]} 9. Bd3 {[%emt 0:07:56]} Nbd7 {[%emt 0:01:01]} 10. Nge2 {[%emt 0:01:19]} Bc5 {[%emt 0:19:40]} 11. Kf2 {[%emt 0:01:53]} Bxe3+ {[%emt 0:14:45]} 12. Kxe3 {[%emt 0:00:46]} Nc5 {[%emt 0:00:00]} 13. Rhd1 {[%emt 0:00:24]} Ke7 {[%emt 0:00:56]} 14. b3 {[%emt 0:03:51]} a5 {[%emt 0:00:37]} 15. Rab1 {[%emt 0:07:55]} Nfd7 {[%emt 0:19:34]} 16. Bc2 {[%emt 0:02:20]} Nb6 {[%emt 0:13:33]} 17. Nc1 {[%emt 0:08:47]} Rhd8 {[%emt 0:02:36]} 18. Nd3 {[%emt 0:05:50]} Nbd7 {[%emt 0:03:54]} 19. Nb2 {[%emt 0:04:16]} f6 {[%emt 0:02:22]} 20. Rd2 {[%emt 0:01:34]} Nb6 {[%emt 0:02:29]} 21. Nd3 {[%emt 0:05:26]} Nxd3 {[%emt 0:10:05]} 22. Bxd3 {[%emt 0:01:29]} Rd4 {[%emt 0:07:09]} 23. c5 {[%emt 0:01:31]} Nd7 {[%emt 0:00:04]} 24. Na4 {[%emt 0:00:15]} Rd8 {[%emt 0:00:16]} 25. Rc1 {[%emt 0:02:56]} g6 {[%emt 0:02:49]} 26. g4 {[%emt 0:03:16]} g5 {[%emt 0:00:55]} 27. Rcc2 {[%emt 0:00:19]} h5 {[%emt 0:00:35]} 28. h3 {[%emt 0:00:16]} Nf8 {[%emt 0:00:50]} 29. gxh5 {[%emt 0:11:28]} Kf7 {[%emt 0:00:26]} 30. Nb6 {[%emt 0:01:53]} Kg7 {[%emt 0:02:26]} 31. Bf1 {[%emt 0:09:46]} Kh6 {[%emt 0:00:00]} 32. Bc4 {[%emt 0:00:23]} Bxh3 {[%emt 0:02:31]} 33. Rxd4 {[%emt 0:03:54]} exd4+ {[%emt 0:01:06]} 34. Kf2 {[%emt 0:02:35]} Ne6 {[%emt 0:01:41]} 35. Kg3 {[%emt 0:02:15]} Nf4 {[%emt 0:02:28]} 36. Rd2 {[%emt 0:01:35]} Kxh5 {[%emt 0:00:12]} 37. Bf7+ {[%emt 0:00:26]} Kh6 {[%emt 0:00:00]} 38. Nc4 {[%emt 0:03:36]} Kg7 {[%emt 0:00:00]} 39. Bh5 {[%emt 0:00:00]} Be6 {[%emt 0:00:00]} 40. Bg4 {[%emt 0:00:00]} Bxc4 {[%emt 0:00:00]} 41. bxc4 {[%emt 1:58:54]} d3 {[%emt 1:58:48]} 42. Kf2 {[%emt 0:00:43]} Rd4 {[%emt 0:00:08]} 43. Ke3 {[%emt 0:00:08]} Rxc4 {[%emt 0:00:00]} 44. Rb2 {[%emt 0:00:00]} Rxc5 {[%emt 0:00:00]} 45. Rxb7+ {[%emt 0:00:00]} Kf8 {[%emt 0:00:00]} 46. Rb8+ {[%emt 0:01:44]} Ke7 {[%emt 0:00:00]} 47. Rb7+ {[%emt 0:00:00]} Kd8 {[%emt 0:00:00]} 48. Rd7+ {[%emt 0:00:00]} Ke8 {[%emt 0:00:00]} 49. Rd6 {[%emt 0:00:13]} Rc2 {[%emt 0:00:00]} 50. e5 {[%emt 0:04:51]} Re2+ {[%emt 0:00:00]} 51. Kd4 {[%emt 0:00:00]} Rxe5 {[%emt 0:00:00]} 52. Kc3 {[%emt 0:00:00]} Rc5+ {[%emt 0:00:00]} 53. Kd2 {[%emt 0:00:00]} f5 {[%emt 0:00:00]} 0-1

[Event "Klatov Bazar Besiny Cup 2018"]
[Site "Klatovy"]
[Date "2018.07.07"]
[Round "8"]
[White "Toman, Ondrej"]
[Black "Simek, Petr"]
[Result "1-0"]
[ECO "B40"]
[WhiteElo "2197"]
[BlackElo "2354"]
[Annotator "NA"]
[PlyCount "111"]
[EventDate "2018.07.01"]
[EventType "swiss"]
[EventCountry "CZE"]
[SourceTitle "playchess.com"]
[Source "ChessBase"]
[SourceQuality "1"]
[TimeControl "40/7200:0"]

1. e4 {[%emt 0:00:00]} c5 {[%emt 0:00:00]} 2. Nf3 {[%emt 0:00:00]} e6 {[%emt 0:00:00]} 3. b3 {[%emt 0:00:00]} b6 {[%emt 0:00:00]} 4. Bb2 {[%emt 0:00:00]} Bb7 {[%emt 0:00:00]} 5. Nc3 {[%emt 0:00:00]} a6 {[%emt 0:00:00]} 6. g3 {[%emt 0:02:58]} Nf6 {[%emt 0:00:00]} 7. Qe2 Nc6 {[%emt 0:01:34]} 8. Bg2 {[%emt 0:03:32]} d6 {[%emt 0:00:00]} 9. O-O {[%emt 0:05:37]} Be7 {[%emt 0:04:18]} 10. Rad1 {[%emt 0:09:25]} O-O {[%emt 0:00:00]} 11. d4 {[%emt 0:00:49]} cxd4 {[%emt 0:00:00]} 12. Nxd4 {[%emt 0:00:00]} Qc7 {[%emt 0:00:20]} 13. Rd2 {[%emt 0:03:16]} Rac8 {[%emt 0:21:28]} 14. h3 {[%emt 0:09:05]} Rfe8 {[%emt 0:03:27]} 15. Kh2 {[%emt 0:03:26]} b5 {[%emt 0:16:30]} 16. f4 {[%emt 0:05:22]} Nxd4 {[%emt 0:07:47]} 17. Rxd4 {[%emt 0:00:03]} e5 {[%emt 0:00:00]} 18. Rd2 {[%emt 0:04:01]} exf4 {[%emt 0:07:30]} 19. gxf4 {[%emt 0:03:45]} Bf8 {[%emt 0:09:47]} 20. Qd3 {[%emt 0:04:36]} Qc5 {[%emt 0:04:08]} 21. Rg1 {[%emt 0:05:16]} Qh5 {[%emt 0:04:22]} 22. Qg3 {[%emt 0:08:41]} Qh6 {[%emt 0:01:37]} 23. Bf3 {[%emt 0:15:34]} b4 {[%emt 0:03:41]} 24. Nd5 {[%emt 0:01:14]} Bxd5 {[%emt 0:00:00]} 25. exd5 {[%emt 0:02:41]} Re3 {[%emt 0:05:10]} 26. Rdg2 {[%emt 0:05:05]} Nh5 {[%emt 0:00:04]} 27. Qg4 {[%emt 0:04:54]} Qxf4+ {[%emt 0:00:00]} 28. Qxf4 {[%emt 0:00:00]} Nxf4 {[%emt 0:00:00]} 29. Rf2 {[%emt 0:00:00]} Rce8 {[%emt 0:04:37]} 30. Rg4 {[%emt 0:00:33]} Rxf3 {[%emt 0:11:49]} 31. Rxf3 {[%emt 0:00:00]} Re2+ {[%emt 0:00:00]} 32. Kg1 {[%emt 0:05:02]} Nxd5 33. Bxg7 {[%emt 0:00:35]} Bxg7 {[%emt 0:00:00]} 34. Rfg3 {[%emt 0:00:00]} Nf6 {[%emt 0:01:31]} 35. Rxg7+ {[%emt 0:00:00]} Kf8 {[%emt 0:00:00]} 36. Rg2 {[%emt 0:00:33]} Re1+ {[%emt 0:00:00]} 37. Kh2 {[%emt 0:00:00]} Ra1 {[%emt 0:00:00]} 38. R7g5 {[%emt 0:00:00]} Rxa2 {[%emt 0:00:00]} 39. Rf5 {[%emt 0:00:00]} Nd7 {[%emt 0:00:00]} 40. Rgf2 {[%emt 0:00:00]} Ne5 {[%emt 0:00:00]} 41. Rf6 {[%emt 2:01:22]} a5 {[%emt 1:58:52]} 42. Kg2 {[%emt 0:01:53]} a4 {[%emt 0:01:29]} 43. bxa4 {[%emt 0:00:00]} Rxa4 {[%emt 0:00:00]} 44. Rxd6 {[%emt 0:00:00]} Ra2 {[%emt 0:00:00]} 45. Rd4 {[%emt 0:02:36]} Rb2 {[%emt 0:00:00]} 46. Rd8+ {[%emt 0:01:01]} Kg7 {[%emt 0:00:00]} 47. Rb8 {[%emt 0:00:45]} Nc4 {[%emt 0:01:05]} 48. Rb7 {[%emt 0:01:00]} Rxc2 {[%emt 0:00:00]} 49. Rbxf7+ {[%emt 0:00:00]} Kg6 {[%emt 0:00:00]} 50. Rxc2 {[%emt 0:00:19]} Ne3+ {[%emt 0:00:00]} 51. Kf3 {[%emt 0:00:00]} Nxc2 {[%emt 0:00:00]} 52. Rb7 {[%emt 0:00:00]} h5 {[%emt 0:00:00]} 53. Kf4 {[%emt 0:00:00]} Nd4 {[%emt 0:02:24]} 54. Rb6+ {[%emt 0:00:00]} Kf7 {[%emt 0:00:00]} 55. Rxb4 {[%emt 0:00:00]} Ne6+ {[%emt 0:00:00]} 56. Kf5 {[%emt 0:00:00]} 1-0

[Event "Klatov Bazar Besiny Cup 2018"]
[Site "Klatovy"]
[Date "2018.07.07"]
[Round "8"]
[White "Soural, Jan"]
[Black "Mejzlik, Ondrej"]
[Result "1/2-1/2"]
[ECO "D11"]
[WhiteElo "2192"]
[BlackElo "2287"]
[Annotator "NA"]
[PlyCount "34"]
[EventDate "2018.07.01"]
[EventType "swiss"]
[EventCountry "CZE"]
[SourceTitle "playchess.com"]
[Source "ChessBase"]
[SourceQuality "1"]
[TimeControl "40/7200:0"]

1. d4 {[%emt 0:00:00]} d5 {[%emt 0:00:00]} 2. c4 {[%emt 0:00:00]} c6 {[%emt 0:00:00]} 3. Nf3 {[%emt 0:00:00]} Nf6 {[%emt 0:00:00]} 4. e3 {[%emt 0:00:00]} e6 {[%emt 0:00:00]} 5. b3 {[%emt 0:00:00]} Nbd7 {[%emt 0:00:00]} 6. Bd3 {[%emt 0:00:00]} Bd6 {[%emt 0:00:00]} 7. Bb2 {[%emt 0:00:00]} O-O {[%emt 0:00:00]} 8. O-O {[%emt 0:00:13]} Re8 {[%emt 0:00:00]} 9. Ne5 {[%emt 0:04:19]} Qc7 {[%emt 0:01:39]} 10. f4 {[%emt 0:04:43]} Ne4 {[%emt 0:06:01]} 11. Nd2 {[%emt 0:14:27]} f5 {[%emt 0:02:12]} 12. Ndf3 {[%emt 0:15:59]} Ndf6 {[%emt 0:03:16]} 13. c5 {[%emt 0:07:29]} Bf8 {[%emt 0:00:59]} 14. b4 {[%emt 0:00:00]} Bd7 {[%emt 0:05:53]} 15. a4 {[%emt 0:02:43]} Reb8 {[%emt 0:03:50]} 16. Qc2 {[%emt 0:21:01]} Be8 {[%emt 0:13:56]} 17. a5 {[%emt 0:18:26]} h6 1/2-1/2

[Event "Klatov Bazar Besiny Cup 2018"]
[Site "Klatovy"]
[Date "2018.07.07"]
[Round "8"]
[White "Simet, Martin"]
[Black "Jurek, Josef"]
[Result "1/2-1/2"]
[ECO "A45"]
[WhiteElo "2182"]
[BlackElo "2277"]
[Annotator "NA"]
[PlyCount "56"]
[EventDate "2018.07.01"]
[EventType "swiss"]
[EventCountry "CZE"]
[SourceTitle "playchess.com"]
[Source "ChessBase"]
[SourceQuality "1"]
[TimeControl "40/7200:0"]

1. d4 {[%emt 0:00:00]} Nf6 {[%emt 0:00:00]} 2. Bf4 {[%emt 0:00:00]} g6 {[%emt 0:00:00]} 3. e3 {[%emt 0:00:00]} Bg7 {[%emt 0:00:00]} 4. Nf3 {[%emt 0:00:00]} d6 {[%emt 0:00:00]} 5. h3 {[%emt 0:00:00]} O-O {[%emt 0:00:00]} 6. c3 {[%emt 0:00:00]} Nbd7 {[%emt 0:01:41]} 7. Be2 {[%emt 0:00:00]} Qe8 {[%emt 0:00:16]} 8. Bh2 {[%emt 0:00:00]} e5 {[%emt 0:00:22]} 9. O-O {[%emt 0:00:00]} Qe7 {[%emt 0:00:00]} 10. a4 {[%emt 0:03:52]} e4 {[%emt 0:01:41]} 11. Nfd2 {[%emt 0:00:00]} Ne8 {[%emt 0:00:43]} 12. Qb3 {[%emt 0:07:07]} Kh8 {[%emt 0:01:14]} 13. Qa3 {[%emt 0:05:12]} f5 {[%emt 0:02:50]} 14. Rd1 {[%emt 0:01:42]} g5 {[%emt 0:04:01]} 15. c4 {[%emt 0:00:00]} Ndf6 {[%emt 0:12:37]} 16. c5 {[%emt 0:15:12]} dxc5 {[%emt 0:08:12]} 17. dxc5 {[%emt 0:00:00]} Nd5 {[%emt 0:01:36]} 18. Bc4 {[%emt 0:03:33]} Nef6 {[%emt 0:15:16]} 19. c6 {[%emt 0:08:10]} Qxa3 {[%emt 0:06:40]} 20. cxb7 {[%emt 0:00:00]} Qxa1 {[%emt 0:05:05]} 21. bxa8=Q {[%emt 0:00:51]} Qxa4 {[%emt 0:01:38]} 22. b3 {[%emt 0:00:00]} Qa5 {[%emt 0:01:21]} 23. Bxd5 {[%emt 0:00:33]} Qxd5 {[%emt 0:03:45]} 24. Qxa7 {[%emt 0:00:00]} f4 {[%emt 0:02:57]} 25. Qxc7 {[%emt 0:00:58]} Qd3 {[%emt 0:08:00]} 26. Re1 {[%emt 0:13:19]} Nd5 {[%emt 0:05:22]} 27. Qc4 {[%emt 0:02:31]} fxe3 {[%emt 0:02:05]} 28. fxe3 {[%emt 0:00:00]} Qxc4 1/2-1/2

[Event "Klatov Bazar Besiny Cup 2018"]
[Site "Klatovy"]
[Date "2018.07.07"]
[Round "8"]
[White "Chmel, Kristian"]
[Black "Vyprachticky, David"]
[Result "0-1"]
[ECO "C45"]
[WhiteElo "2121"]
[BlackElo "2301"]
[Annotator "NA"]
[PlyCount "48"]
[EventDate "2018.07.01"]
[EventType "swiss"]
[EventCountry "CZE"]
[SourceTitle "playchess.com"]
[Source "ChessBase"]
[SourceQuality "1"]
[TimeControl "40/7200:0"]

1. e4 {[%emt 0:00:00]} e5 {[%emt 0:00:16]} 2. Nf3 {[%emt 0:00:00]} Nc6 {[%emt 0:00:00]} 3. d4 {[%emt 0:00:00]} exd4 {[%emt 0:00:00]} 4. Nxd4 {[%emt 0:00:00]} Nf6 {[%emt 0:00:48]} 5. Nxc6 {[%emt 0:00:00]} bxc6 {[%emt 0:00:00]} 6. e5 {[%emt 0:00:00]} Qe7 {[%emt 0:00:00]} 7. Qe2 {[%emt 0:00:00]} Nd5 {[%emt 0:00:00]} 8. c4 {[%emt 0:00:00]} Nb6 {[%emt 0:00:00]} 9. b3 {[%emt 0:41:58]} g6 {[%emt 0:09:31]} 10. Bb2 {[%emt 0:09:27]} Bg7 {[%emt 0:00:04]} 11. f4 {[%emt 0:00:29]} a5 {[%emt 0:06:12]} 12. a4 {[%emt 0:18:51]} Ba6 {[%emt 0:04:25]} 13. Nd2 {[%emt 0:04:10]} O-O {[%emt 0:05:53]} 14. O-O-O {[%emt 0:08:30]} Rab8 {[%emt 0:05:34]} 15. h4 {[%emt 0:02:49]} Qb4 {[%emt 0:05:01]} 16. Rh3 {[%emt 0:08:30]} Nxa4 {[%emt 0:00:33]} 17. Ne4 {[%emt 0:00:57]} Nxb2 {[%emt 0:02:25]} 18. Kxb2 {[%emt 0:03:11]} d5 {[%emt 0:01:41]} 19. Nf6+ {[%emt 0:06:43]} Bxf6 {[%emt 0:00:00]} 20. exf6 {[%emt 0:00:00]} Bxc4 {[%emt 0:00:19]} 21. Qc2 {[%emt 0:00:00]} a4 {[%emt 0:01:00]} 22. Bxc4 {[%emt 0:02:33]} dxc4 {[%emt 0:00:00]} 23. Rd4 {[%emt 0:01:12]} a3+ {[%emt 0:01:35]} 24. Ka1 {[%emt 0:03:28]} cxb3 0-1